[Event "Early-Titled-Tuesday-Blitz-February-27-2024"]
[Site "Chess.com"]
[Date "2024.02.27"]
[Round "9"]
[White "NastyaHn"]
[Black "SahibSinghKnight"]
[Result "1-0"]
[WhiteElo "2466"]
[BlackElo "2550"]
[TimeControl "180+1"]
[EndTime "9:44:57 PST"]
[Termination "NastyaHn won on time"]

1. Nc3 {[%clk 0:03:00.9]} 1... d5 {[%clk 0:02:53.1]} 2. e4 {[%clk 0:03:00.5]}
2... d4 {[%clk 0:02:41.5]} 3. Nce2 {[%clk 0:02:59.7]} 3... c5 {[%clk 0:02:36.4]}
4. Ng3 {[%clk 0:02:59.7]} 4... Nc6 {[%clk 0:02:32.4]} 5. Bc4 {[%clk 0:02:59]}
5... g6 {[%clk 0:02:24.7]} 6. Nf3 {[%clk 0:02:57.9]} 6... Bg7 {[%clk 0:02:23.8]}
7. d3 {[%clk 0:02:57.8]} 7... Nf6 {[%clk 0:02:23.3]} 8. a4 {[%clk 0:02:55.3]}
8... O-O {[%clk 0:02:22.3]} 9. O-O {[%clk 0:02:54.6]} 9... Bg4 {[%clk
0:02:19.3]} 10. Bf4 {[%clk 0:02:45.7]} 10... h6 {[%clk 0:02:10.5]} 11. h3 {[%clk
0:02:41]} 11... Bxf3 {[%clk 0:02:03.5]} 12. Qxf3 {[%clk 0:02:40.5]} 12... g5
{[%clk 0:02:04.4]} 13. Bd2 {[%clk 0:02:39.3]} 13... Ne5 {[%clk 0:02:04.3]} 14.
Qe2 {[%clk 0:02:38.8]} 14... Nxc4 {[%clk 0:01:57.7]} 15. dxc4 {[%clk 0:02:38.9]}
15... e6 {[%clk 0:01:47.4]} 16. f4 {[%clk 0:02:38.8]} 16... Nh7 {[%clk
0:01:41.5]} 17. Nh5 {[%clk 0:02:25.5]} 17... f6 {[%clk 0:01:13.6]} 18. f5 {[%clk
0:01:59.3]} 18... Qe8 {[%clk 0:00:47]} 19. Nxg7 {[%clk 0:01:54.1]} 19... Kxg7
{[%clk 0:00:47.9]} 20. b3 {[%clk 0:01:42.1]} 20... exf5 {[%clk 0:00:45.2]} 21.
Rxf5 {[%clk 0:01:40]} 21... Qe7 {[%clk 0:00:45.2]} 22. Qd3 {[%clk 0:01:24.2]}
22... Rae8 {[%clk 0:00:38.5]} 23. Re1 {[%clk 0:01:23]} 23... Qc7 {[%clk
0:00:33]} 24. Re2 {[%clk 0:01:18.8]} 24... Rf7 {[%clk 0:00:25.4]} 25. Be1 {[%clk
0:01:18.7]} 25... Rfe7 {[%clk 0:00:13]} 26. Bg3 {[%clk 0:01:18.5]} 26... Qc8
{[%clk 0:00:12.2]} 27. e5 {[%clk 0:00:57.5]} 27... b6 {[%clk 0:00:10.7]} 28.
exf6+ {[%clk 0:00:53.8]} 28... Nxf6 {[%clk 0:00:10.4]} 29. Be5 {[%clk
0:00:52.3]} 29... Re6 {[%clk 0:00:06]} 30. Qf3 {[%clk 0:00:45.2]} 30... Rf8
{[%clk 0:00:05.3]} 31. Rf2 {[%clk 0:00:42]} 31... Qd8 {[%clk 0:00:04.8]} 32. h4
{[%clk 0:00:34.1]} 32... gxh4 {[%clk 0:00:02]} 33. Qg4+ {[%clk 0:00:19.7]} 33...
Kh7 {[%clk 0:00:02]} 34. Qxh4 {[%clk 0:00:19.8]} 1-0

[Event "Early-Titled-Tuesday-Blitz-February-27-2024"]
[Site "Chess.com"]
[Date "2024.02.27"]
[Round "9"]
[White "ploxoi"]
[Black "Predator0608"]
[Result "0-1"]
[WhiteElo "2456"]
[BlackElo "2566"]
[TimeControl "180+1"]
[EndTime "9:44:59 PST"]
[Termination "Predator0608 won by resignation"]

1. d4 {[%clk 0:03:00.9]} 1... d6 {[%clk 0:02:58.8]} 2. Nf3 {[%clk 0:02:59.1]}
2... Nd7 {[%clk 0:02:59.7]} 3. c4 {[%clk 0:02:56.8]} 3... g6 {[%clk 0:02:59.8]}
4. Nc3 {[%clk 0:02:57.3]} 4... Bg7 {[%clk 0:03:00.3]} 5. e4 {[%clk 0:02:57.9]}
5... e5 {[%clk 0:02:57.9]} 6. Be2 {[%clk 0:02:54.4]} 6... Ne7 {[%clk 0:02:57.6]}
7. O-O {[%clk 0:02:52]} 7... O-O {[%clk 0:02:57.5]} 8. Be3 {[%clk 0:02:52.2]}
8... f5 {[%clk 0:02:55.3]} 9. dxe5 {[%clk 0:02:43.9]} 9... dxe5 {[%clk
0:02:56.2]} 10. exf5 {[%clk 0:02:40]} 10... gxf5 {[%clk 0:02:53.8]} 11. Bg5
{[%clk 0:02:39.1]} 11... e4 {[%clk 0:02:51]} 12. Nd5 {[%clk 0:02:29.8]} 12...
Nf6 {[%clk 0:02:39]} 13. Nd4 {[%clk 0:02:22]} 13... Nexd5 {[%clk 0:02:12.5]} 14.
cxd5 {[%clk 0:02:22.9]} 14... Kh8 {[%clk 0:01:48.7]} 15. Rc1 {[%clk 0:02:15.7]}
15... Qxd5 {[%clk 0:01:35.7]} 16. Rxc7 {[%clk 0:02:13]} 16... Ne8 {[%clk
0:01:34.2]} 17. Rc4 {[%clk 0:02:07.9]} 17... Nd6 {[%clk 0:01:29.6]} 18. Rc2
{[%clk 0:01:27.1]} 18... Nf7 {[%clk 0:00:54.1]} 19. Be7 {[%clk 0:00:11.7]} 19...
Re8 {[%clk 0:00:53.9]} 20. Bc5 {[%clk 0:00:11.8]} 20... b6 {[%clk 0:00:40.5]}
21. Bc4 {[%clk 0:00:10.1]} 21... Qxc5 {[%clk 0:00:13.9]} 22. Bxf7 {[%clk
0:00:10.2]} 22... Qxd4 {[%clk 0:00:14.6]} 23. Qxd4 {[%clk 0:00:10.9]} 23... Bxd4
{[%clk 0:00:15.5]} 24. Bxe8 {[%clk 0:00:11.2]} 24... Ba6 {[%clk 0:00:15.9]} 25.
Rd1 {[%clk 0:00:11.9]} 25... Bd3 {[%clk 0:00:16.2]} 26. Bc6 {[%clk 0:00:07.7]}
26... Rc8 {[%clk 0:00:15.9]} 27. Rcc1 {[%clk 0:00:04.7]} 27... Bxb2 {[%clk
0:00:16.1]} 28. a4 {[%clk 0:00:03.8]} 28... Bxc1 {[%clk 0:00:15.8]} 29. Rxc1
{[%clk 0:00:04.7]} 29... b5 {[%clk 0:00:15.9]} 30. a5 {[%clk 0:00:04.1]} 30...
b4 {[%clk 0:00:16.3]} 31. a6 {[%clk 0:00:02.8]} 31... b3 {[%clk 0:00:16.5]} 0-1

[Event "Early-Titled-Tuesday-Blitz-February-27-2024"]
[Site "Chess.com"]
[Date "2024.02.27"]
[Round "9"]
[White "Herman-NY"]
[Black "Adar_07"]
[Result "0-1"]
[WhiteElo "2522"]
[BlackElo "2770"]
[TimeControl "180+1"]
[EndTime "9:45:00 PST"]
[Termination "Adar_07 won on time"]

1. e4 {[%clk 0:03:00.9]} 1... e6 {[%clk 0:03:00.9]} 2. d4 {[%clk 0:03:00.7]}
2... d5 {[%clk 0:03:01.8]} 3. Nd2 {[%clk 0:03:00.9]} 3... Nf6 {[%clk 0:03:01.7]}
4. e5 {[%clk 0:03:01.2]} 4... Nfd7 {[%clk 0:03:02.4]} 5. f4 {[%clk 0:03:01.2]}
5... c5 {[%clk 0:03:03.3]} 6. c3 {[%clk 0:03:01.8]} 6... Nc6 {[%clk 0:03:04.2]}
7. Ndf3 {[%clk 0:03:02.3]} 7... f5 {[%clk 0:02:54.9]} 8. Bd3 {[%clk 0:03:01]}
8... Be7 {[%clk 0:02:52.4]} 9. Ne2 {[%clk 0:03:01.3]} 9... Qb6 {[%clk
0:02:52.4]} 10. O-O {[%clk 0:02:58.9]} 10... O-O {[%clk 0:02:52.4]} 11. Kh1
{[%clk 0:02:59.5]} 11... a5 {[%clk 0:02:49]} 12. Rg1 {[%clk 0:02:52.5]} 12...
cxd4 {[%clk 0:02:45.8]} 13. cxd4 {[%clk 0:02:52.4]} 13... Nb4 {[%clk 0:02:46.3]}
14. Bb1 {[%clk 0:02:52.5]} 14... g6 {[%clk 0:02:41.8]} 15. g4 {[%clk 0:02:50.8]}
15... Rf7 {[%clk 0:02:37.7]} 16. Nc3 {[%clk 0:02:18]} 16... fxg4 {[%clk
0:02:24.7]} 17. Rxg4 {[%clk 0:02:18.2]} 17... Nf8 {[%clk 0:02:25.6]} 18. h4
{[%clk 0:02:16.2]} 18... Bd7 {[%clk 0:02:21]} 19. h5 {[%clk 0:02:14.5]} 19...
Rg7 {[%clk 0:02:20]} 20. Qg1 {[%clk 0:02:06.2]} 20... Be8 {[%clk 0:02:18.3]} 21.
a3 {[%clk 0:01:58.6]} 21... Nc6 {[%clk 0:02:12.6]} 22. f5 {[%clk 0:01:58]} 22...
exf5 {[%clk 0:02:10]} 23. Bxf5 {[%clk 0:01:40]} 23... Rd8 {[%clk 0:02:06.9]} 24.
Bb1 {[%clk 0:01:18.8]} 24... Qc7 {[%clk 0:01:32.8]} 25. Ba2 {[%clk 0:01:03.5]}
25... Bf7 {[%clk 0:01:28.5]} 26. h6 {[%clk 0:00:56.7]} 26... Ne6 {[%clk
0:01:22.2]} 27. hxg7 {[%clk 0:00:56.7]} 27... Nxg7 {[%clk 0:01:23.1]} 28. Bb1
{[%clk 0:00:42]} 28... Qc8 {[%clk 0:01:16]} 29. Bd3 {[%clk 0:00:35.1]} 29... Be6
{[%clk 0:01:14.9]} 30. Rg2 {[%clk 0:00:30]} 30... Bf5 {[%clk 0:01:13.5]} 31. Be2
{[%clk 0:00:15.1]} 31... Rf8 {[%clk 0:01:09]} 32. Bg5 {[%clk 0:00:13.9]} 32...
Be4 {[%clk 0:01:07.1]} 33. Nxe4 {[%clk 0:00:06.2]} 33... dxe4 {[%clk 0:01:06.3]}
34. Nh2 {[%clk 0:00:06.6]} 34... Bxg5 {[%clk 0:00:50.3]} 35. Rxg5 {[%clk
0:00:07.5]} 35... Ne6 {[%clk 0:00:50.4]} 36. Bc4 {[%clk 0:00:07.6]} 36... Kg7
{[%clk 0:00:49.4]} 37. Bxe6 {[%clk 0:00:07.9]} 37... Qxe6 {[%clk 0:00:50.2]} 38.
Rd1 {[%clk 0:00:06.3]} 38... Qd5 {[%clk 0:00:48.4]} 39. Qe3 {[%clk 0:00:06.2]}
39... Ne7 {[%clk 0:00:44.8]} 40. Rg4 {[%clk 0:00:05.5]} 40... Nf5 {[%clk
0:00:44.3]} 41. Qxe4 {[%clk 0:00:06]} 41... Ng3+ {[%clk 0:00:44.8]} 42. Rxg3
{[%clk 0:00:03.1]} 42... Qxe4+ {[%clk 0:00:44.9]} 43. Rg2 {[%clk 0:00:03.8]}
43... Rf2 {[%clk 0:00:45.1]} 44. Rg1 {[%clk 0:00:04.1]} 44... Rxb2 {[%clk
0:00:44.9]} 45. Ng4 {[%clk 0:00:03.5]} 45... h5 {[%clk 0:00:36.6]} 46. Nh2
{[%clk 0:00:03.1]} 46... h4 {[%clk 0:00:36]} 0-1

[Event "Early-Titled-Tuesday-Blitz-February-27-2024"]
[Site "Chess.com"]
[Date "2024.02.27"]
[Round "9"]
[White "djano"]
[Black "Manukyan_Artak"]
[Result "0-1"]
[WhiteElo "2588"]
[BlackElo "2487"]
[TimeControl "180+1"]
[EndTime "9:45:01 PST"]
[Termination "Manukyan_Artak won on time"]

1. Nc3 {[%clk 0:03:00.9]} 1... c5 {[%clk 0:02:55.3]} 2. e4 {[%clk 0:03:00.6]}
2... a6 {[%clk 0:02:54.8]} 3. g4 {[%clk 0:02:59.1]} 3... b5 {[%clk 0:02:53.8]}
4. Bg2 {[%clk 0:02:59.4]} 4... b4 {[%clk 0:02:53.1]} 5. Na4 {[%clk 0:02:55]}
5... e6 {[%clk 0:02:52.1]} 6. Ne2 {[%clk 0:02:51.4]} 6... h5 {[%clk 0:02:40.5]}
7. gxh5 {[%clk 0:02:47.6]} 7... Rxh5 {[%clk 0:02:38]} 8. d4 {[%clk 0:02:41.5]}
8... cxd4 {[%clk 0:02:30.3]} 9. Nxd4 {[%clk 0:02:40.7]} 9... Nf6 {[%clk
0:02:25.1]} 10. Be3 {[%clk 0:02:25.6]} 10... Bb7 {[%clk 0:02:20.7]} 11. Qd3
{[%clk 0:02:15.3]} 11... d5 {[%clk 0:02:12.7]} 12. e5 {[%clk 0:02:15.4]} 12...
Rxe5 {[%clk 0:02:07.7]} 13. O-O-O {[%clk 0:02:15.5]} 13... Nbd7 {[%clk
0:02:02.8]} 14. Kb1 {[%clk 0:02:06.9]} 14... Qa5 {[%clk 0:01:55.4]} 15. b3
{[%clk 0:02:05]} 15... O-O-O {[%clk 0:01:48.5]} 16. Bf3 {[%clk 0:01:49.1]} 16...
Ne4 {[%clk 0:01:44.4]} 17. Rhf1 {[%clk 0:01:26.5]} 17... Ndc5 {[%clk 0:01:39.2]}
18. Nxc5 {[%clk 0:01:26.3]} 18... Nc3+ {[%clk 0:01:35.8]} 19. Qxc3 {[%clk
0:01:21.5]} 19... bxc3 {[%clk 0:01:34.4]} 20. Nd3 {[%clk 0:01:18.3]} 20... Bd6
{[%clk 0:01:19.9]} 21. Bf4 {[%clk 0:01:11.9]} 21... Re4 {[%clk 0:01:15.6]} 22.
Bxd6 {[%clk 0:01:02.2]} 22... Rxd6 {[%clk 0:01:16.5]} 23. Ne2 {[%clk 0:00:35.3]}
23... Rh4 {[%clk 0:01:13.5]} 24. Rg1 {[%clk 0:00:33.8]} 24... g6 {[%clk
0:01:11.4]} 25. Ndc1 {[%clk 0:00:32.2]} 25... d4 {[%clk 0:01:02.9]} 26. Bxb7+
{[%clk 0:00:30.1]} 26... Kxb7 {[%clk 0:01:03.8]} 27. Rg3 {[%clk 0:00:26.2]}
27... Qa3 {[%clk 0:00:59.5]} 28. Nd3 {[%clk 0:00:24.4]} 28... e5 {[%clk
0:00:56.8]} 29. f3 {[%clk 0:00:18.5]} 29... f5 {[%clk 0:00:54.7]} 30. Nec1
{[%clk 0:00:04.3]} 30... e4 {[%clk 0:00:50.3]} 31. fxe4 {[%clk 0:00:05.2]} 31...
fxe4 {[%clk 0:00:50.4]} 32. Re1 {[%clk 0:00:05.9]} 32... exd3 {[%clk 0:00:49.5]}
33. Nxd3 {[%clk 0:00:06.8]} 33... Kc7 {[%clk 0:00:38.2]} 34. Rf3 {[%clk
0:00:06.1]} 34... Rh7 {[%clk 0:00:35.1]} 35. h3 {[%clk 0:00:04.3]} 35... Rdd7
{[%clk 0:00:33.2]} 36. Ref1 {[%clk 0:00:03.4]} 36... Rde7 {[%clk 0:00:32.6]} 37.
h4 {[%clk 0:00:02.7]} 37... Re3 {[%clk 0:00:31.9]} 38. Rxe3 {[%clk 0:00:02.4]}
38... dxe3 {[%clk 0:00:32.8]} 39. Re1 {[%clk 0:00:03]} 39... Rf7 {[%clk
0:00:29.2]} 40. Rd1 {[%clk 0:00:02.3]} 40... e2 {[%clk 0:00:28.4]} 41. Re1
{[%clk 0:00:02.8]} 41... Rf1 {[%clk 0:00:28.3]} 0-1

[Event "Early-Titled-Tuesday-Blitz-February-27-2024"]
[Site "Chess.com"]
[Date "2024.02.27"]
[Round "9"]
[White "TitarovVasiliYouTube"]
[Black "annamaja"]
[Result "0-1"]
[WhiteElo "2496"]
[BlackElo "2430"]
[TimeControl "180+1"]
[EndTime "9:45:01 PST"]
[Termination "annamaja won by resignation"]

1. e4 {[%clk 0:02:45.3]} 1... e6 {[%clk 0:02:58.9]} 2. d3 {[%clk 0:02:42]} 2...
d5 {[%clk 0:02:55.7]} 3. Nd2 {[%clk 0:02:42.3]} 3... c5 {[%clk 0:02:55.4]} 4. g3
{[%clk 0:02:42.4]} 4... Nc6 {[%clk 0:02:55.7]} 5. Ngf3 {[%clk 0:02:42.4]} 5...
e5 {[%clk 0:02:52.7]} 6. Bg2 {[%clk 0:02:41.3]} 6... Nf6 {[%clk 0:02:52.3]} 7.
O-O {[%clk 0:02:41.2]} 7... d4 {[%clk 0:02:48.7]} 8. a4 {[%clk 0:02:39.9]} 8...
Be7 {[%clk 0:02:47.2]} 9. Nc4 {[%clk 0:02:39.8]} 9... Qc7 {[%clk 0:02:44.5]} 10.
Nh4 {[%clk 0:02:39.6]} 10... Bg4 {[%clk 0:02:40.4]} 11. f3 {[%clk 0:02:39.3]}
11... Be6 {[%clk 0:02:40.6]} 12. Qe1 {[%clk 0:02:33.7]} 12... Nb4 {[%clk
0:02:38]} 13. Rf2 {[%clk 0:02:22.7]} 13... Bxc4 {[%clk 0:02:19.5]} 14. dxc4
{[%clk 0:02:22.4]} 14... d3 {[%clk 0:02:20.1]} 15. cxd3 {[%clk 0:02:10.9]} 15...
Nxd3 {[%clk 0:02:20.1]} 16. Qf1 {[%clk 0:02:11.6]} 16... Nxf2 {[%clk 0:02:19.8]}
17. Qxf2 {[%clk 0:02:12.5]} 17... g6 {[%clk 0:02:13.5]} 18. f4 {[%clk
0:02:00.8]} 18... O-O {[%clk 0:02:04.1]} 19. f5 {[%clk 0:01:53.5]} 19... Rfd8
{[%clk 0:01:57.5]} 20. Bg5 {[%clk 0:01:49.8]} 20... Nxe4 {[%clk 0:01:47]} 21.
Bxe4 {[%clk 0:01:41.7]} 21... Bxg5 {[%clk 0:01:47.1]} 22. Bd5 {[%clk 0:01:28.6]}
22... Bxh4 {[%clk 0:01:11.3]} 23. gxh4 {[%clk 0:01:28.7]} 23... Rd6 {[%clk
0:01:11.3]} 24. Rf1 {[%clk 0:01:24.4]} 24... Rf6 {[%clk 0:00:47]} 25. Qg3 {[%clk
0:01:21.4]} 25... Kh8 {[%clk 0:00:31.5]} 26. Qg5 {[%clk 0:01:18.8]} 26... Qd6
{[%clk 0:00:30.9]} 27. Kh1 {[%clk 0:00:58.4]} 27... Re8 {[%clk 0:00:20.3]} 28.
h5 {[%clk 0:00:46.2]} 28... Rxf5 {[%clk 0:00:14.3]} 29. Rxf5 {[%clk 0:00:47.1]}
29... gxf5 {[%clk 0:00:15]} 30. Qxf5 {[%clk 0:00:47.6]} 30... e4 {[%clk
0:00:10.2]} 31. Qxf7 {[%clk 0:00:39.5]} 31... Qe5 {[%clk 0:00:08.7]} 32. h6
{[%clk 0:00:36.6]} 32... e3 {[%clk 0:00:07.7]} 33. Bf3 {[%clk 0:00:36.8]} 33...
Qe7 {[%clk 0:00:03.1]} 34. Qf5 {[%clk 0:00:34.2]} 34... Rf8 {[%clk 0:00:03.5]}
35. Qh5 {[%clk 0:00:32.5]} 35... Qf6 {[%clk 0:00:02.4]} 36. Be2 {[%clk 0:00:30]}
36... Qxb2 {[%clk 0:00:02.3]} 37. Qg4 {[%clk 0:00:28.7]} 37... Qc1+ {[%clk
0:00:02.3]} 38. Kg2 {[%clk 0:00:28.9]} 38... Rg8 {[%clk 0:00:03]} 0-1

[Event "Early-Titled-Tuesday-Blitz-February-27-2024"]
[Site "Chess.com"]
[Date "2024.02.27"]
[Round "9"]
[White "MessiKingdom"]
[Black "Jumbo"]
[Result "1-0"]
[WhiteElo "2680"]
[BlackElo "2884"]
[TimeControl "180+1"]
[EndTime "9:45:03 PST"]
[Termination "MessiKingdom won on time"]

1. d4 {[%clk 0:02:56.2]} 1... e6 {[%clk 0:02:59.2]} 2. Bf4 {[%clk 0:02:53.3]}
2... Nf6 {[%clk 0:02:58]} 3. e3 {[%clk 0:02:47]} 3... b6 {[%clk 0:02:51.6]} 4.
Qf3 {[%clk 0:02:46.9]} 4... Nc6 {[%clk 0:02:47.4]} 5. Nc3 {[%clk 0:02:47]} 5...
Bb7 {[%clk 0:02:47.1]} 6. O-O-O {[%clk 0:02:47.5]} 6... Be7 {[%clk 0:01:55.6]}
7. h4 {[%clk 0:02:42.3]} 7... d6 {[%clk 0:01:44.6]} 8. h5 {[%clk 0:02:40.9]}
8... h6 {[%clk 0:01:43.6]} 9. Qg3 {[%clk 0:02:40.8]} 9... Rg8 {[%clk 0:01:42.9]}
10. e4 {[%clk 0:02:09.6]} 10... a6 {[%clk 0:01:32.1]} 11. e5 {[%clk 0:01:39.2]}
11... dxe5 {[%clk 0:00:55.4]} 12. dxe5 {[%clk 0:01:39.4]} 12... Nd7 {[%clk
0:00:56]} 13. Nf3 {[%clk 0:01:31.5]} 13... Kf8 {[%clk 0:00:55.3]} 14. Bd3 {[%clk
0:01:22.1]} 14... Nb4 {[%clk 0:00:48.4]} 15. Be2 {[%clk 0:00:53.9]} 15... Qe8
{[%clk 0:00:43.7]} 16. a3 {[%clk 0:00:53.5]} 16... Nd5 {[%clk 0:00:43.1]} 17.
Nxd5 {[%clk 0:00:48.9]} 17... Bxd5 {[%clk 0:00:44]} 18. Nh4 {[%clk 0:00:45.1]}
18... Nc5 {[%clk 0:00:24.9]} 19. Bf3 {[%clk 0:00:20.5]} 19... Bxh4 {[%clk
0:00:24.5]} 20. Rxh4 {[%clk 0:00:19.5]} 20... c6 {[%clk 0:00:24.1]} 21. Rg4
{[%clk 0:00:16.7]} 21... Ke7 {[%clk 0:00:08.6]} 22. Rxg7 {[%clk 0:00:16.8]}
22... Rxg7 {[%clk 0:00:07.9]} 23. Qxg7 {[%clk 0:00:17.5]} 23... Qh8 {[%clk
0:00:08.2]} 24. Bxh6 {[%clk 0:00:15.7]} 24... b5 {[%clk 0:00:02.8]} 25. Bg5+
{[%clk 0:00:15.5]} 25... Kd7 {[%clk 0:00:03.4]} 26. Qxf7+ {[%clk 0:00:16]} 26...
Kc8 {[%clk 0:00:04]} 27. Bxd5 {[%clk 0:00:15.3]} 27... cxd5 {[%clk 0:00:04.9]}
28. Bf6 {[%clk 0:00:12]} 28... Qh6+ {[%clk 0:00:05]} 29. Kb1 {[%clk 0:00:12.6]}
29... Nd7 {[%clk 0:00:01.6]} 30. Qe8+ {[%clk 0:00:10.9]} 30... Kc7 {[%clk
0:00:01.3]} 31. Qxa8 {[%clk 0:00:11.4]} 31... Qxh5 {[%clk 0:00:01.1]} 32. Qa7+
{[%clk 0:00:11.3]} 1-0

[Event "Early-Titled-Tuesday-Blitz-February-27-2024"]
[Site "Chess.com"]
[Date "2024.02.27"]
[Round "9"]
[White "chipmunknau"]
[Black "tetrix83"]
[Result "0-1"]
[WhiteElo "2719"]
[BlackElo "2571"]
[TimeControl "180+1"]
[EndTime "9:45:03 PST"]
[Termination "tetrix83 won on time"]

1. Nf3 {[%clk 0:03:00.9]} 1... d5 {[%clk 0:02:57]} 2. c4 {[%clk 0:02:59]} 2...
e6 {[%clk 0:02:50.5]} 3. g3 {[%clk 0:02:52]} 3... Nf6 {[%clk 0:02:48.6]} 4. Bg2
{[%clk 0:02:51.2]} 4... dxc4 {[%clk 0:02:48.7]} 5. Qa4+ {[%clk 0:02:47.7]} 5...
Nbd7 {[%clk 0:02:44.5]} 6. Qxc4 {[%clk 0:02:45.3]} 6... c5 {[%clk 0:02:36.5]} 7.
Qc2 {[%clk 0:02:36.4]} 7... Be7 {[%clk 0:02:33.6]} 8. O-O {[%clk 0:02:36.1]}
8... O-O {[%clk 0:02:33.6]} 9. d4 {[%clk 0:02:33.1]} 9... Qb6 {[%clk 0:02:14.4]}
10. Rd1 {[%clk 0:02:23.1]} 10... cxd4 {[%clk 0:02:11.3]} 11. Nxd4 {[%clk
0:02:19.9]} 11... Nc5 {[%clk 0:02:11]} 12. Na3 {[%clk 0:02:15.9]} 12... e5
{[%clk 0:02:09.8]} 13. Nc4 {[%clk 0:02:10.6]} 13... Qc7 {[%clk 0:01:53.9]} 14.
Nb5 {[%clk 0:02:01.2]} 14... Qb8 {[%clk 0:01:53.8]} 15. Nbd6 {[%clk 0:01:40]}
15... Ne6 {[%clk 0:01:33.7]} 16. Be3 {[%clk 0:01:05.7]} 16... Rd8 {[%clk
0:01:28.7]} 17. Nxc8 {[%clk 0:00:59.4]} 17... Rxc8 {[%clk 0:01:24.8]} 18. Qb3
{[%clk 0:00:50.9]} 18... Nc5 {[%clk 0:01:20.7]} 19. Bxc5 {[%clk 0:00:50.6]}
19... Rxc5 {[%clk 0:01:20.6]} 20. Qxb7 {[%clk 0:00:46.8]} 20... Qxb7 {[%clk
0:01:17.3]} 21. Bxb7 {[%clk 0:00:47.7]} 21... Rb8 {[%clk 0:01:16.3]} 22. Ba6
{[%clk 0:00:45.3]} 22... Rc6 {[%clk 0:01:12.5]} 23. Nxe5 {[%clk 0:00:29.8]}
23... Rxa6 {[%clk 0:01:11.7]} 24. Rac1 {[%clk 0:00:26.4]} 24... Bf8 {[%clk
0:01:02.2]} 25. a3 {[%clk 0:00:19.9]} 25... Re6 {[%clk 0:00:58.1]} 26. f4 {[%clk
0:00:17.1]} 26... g6 {[%clk 0:00:46.3]} 27. Rc2 {[%clk 0:00:15.9]} 27... Bd6
{[%clk 0:00:40.2]} 28. Nc6 {[%clk 0:00:13.6]} 28... Rb7 {[%clk 0:00:39]} 29. Kf1
{[%clk 0:00:10.9]} 29... Ng4 {[%clk 0:00:37.5]} 30. Nd8 {[%clk 0:00:06.8]} 30...
Ne3+ {[%clk 0:00:34.7]} 31. Kg1 {[%clk 0:00:04.6]} 31... Nxd1 {[%clk 0:00:24.5]}
32. Nxb7 {[%clk 0:00:04.8]} 32... Be7 {[%clk 0:00:18.6]} 33. Rd2 {[%clk
0:00:03.4]} 33... Ne3 {[%clk 0:00:16.3]} 34. b3 {[%clk 0:00:01.6]} 34... Rb6
{[%clk 0:00:15.6]} 35. Na5 {[%clk 0:00:02.2]} 35... Bc5 {[%clk 0:00:14.4]} 36.
b4 {[%clk 0:00:01.4]} 36... Nc4+ {[%clk 0:00:11.6]} 0-1

[Event "Early-Titled-Tuesday-Blitz-February-27-2024"]
[Site "Chess.com"]
[Date "2024.02.27"]
[Round "9"]
[White "Actuary44"]
[Black "GelmanAlexander"]
[Result "1-0"]
[WhiteElo "2534"]
[BlackElo "2699"]
[TimeControl "180+1"]
[EndTime "9:45:04 PST"]
[Termination "Actuary44 won on time"]

1. e4 {[%clk 0:03:00.9]} 1... c5 {[%clk 0:02:59.7]} 2. d4 {[%clk 0:03:01.1]}
2... cxd4 {[%clk 0:02:58]} 3. c3 {[%clk 0:03:01.8]} 3... dxc3 {[%clk 0:02:58.2]}
4. Nxc3 {[%clk 0:03:02.7]} 4... e6 {[%clk 0:02:58.5]} 5. f4 {[%clk 0:03:03.4]}
5... Nc6 {[%clk 0:02:52.2]} 6. Nf3 {[%clk 0:03:04]} 6... a6 {[%clk 0:02:46.4]}
7. Bd3 {[%clk 0:03:04.5]} 7... d6 {[%clk 0:02:43.2]} 8. O-O {[%clk 0:03:05]}
8... Nf6 {[%clk 0:02:40.4]} 9. Kh1 {[%clk 0:03:05.5]} 9... Be7 {[%clk 0:02:37]}
10. Qe1 {[%clk 0:03:06]} 10... O-O {[%clk 0:02:25.2]} 11. Be3 {[%clk 0:03:05.8]}
11... b5 {[%clk 0:02:19.8]} 12. Rd1 {[%clk 0:03:05.6]} 12... Qc7 {[%clk
0:02:16.3]} 13. Qg3 {[%clk 0:03:04.4]} 13... Bb7 {[%clk 0:02:01.4]} 14. e5
{[%clk 0:03:04.5]} 14... Nd7 {[%clk 0:01:54.8]} 15. exd6 {[%clk 0:03:00.4]}
15... Bxd6 {[%clk 0:01:54.8]} 16. Bxh7+ {[%clk 0:02:52.5]} 16... Kxh7 {[%clk
0:01:54.8]} 17. Ng5+ {[%clk 0:02:52.4]} 17... Kg8 {[%clk 0:01:54.9]} 18. Qh4
{[%clk 0:02:52.2]} 18... Nf6 {[%clk 0:01:46.7]} 19. Nce4 {[%clk 0:02:52.4]}
19... Rfd8 {[%clk 0:01:33.6]} 20. Rxd6 {[%clk 0:01:48.7]} 20... Rxd6 {[%clk
0:01:31.1]} 21. Bc5 {[%clk 0:01:37.6]} 21... Nxe4 {[%clk 0:00:51.3]} 22. Qh7+
{[%clk 0:01:32.8]} 22... Kf8 {[%clk 0:00:51.4]} 23. Nxe4 {[%clk 0:01:30.1]}
23... Rd8 {[%clk 0:00:50.6]} 24. Rd1 {[%clk 0:01:14.1]} 24... Nd4 {[%clk
0:00:31.1]} 25. Nxd6 {[%clk 0:00:10.2]} 25... Rxd6 {[%clk 0:00:20.5]} 26. Bxd6+
{[%clk 0:00:10.3]} 26... Qxd6 {[%clk 0:00:19.6]} 27. Qh8+ {[%clk 0:00:11.2]}
27... Ke7 {[%clk 0:00:19.6]} 28. Qxg7 {[%clk 0:00:12.1]} 28... Qc6 {[%clk
0:00:13.7]} 29. Qg5+ {[%clk 0:00:08.2]} 29... Ke8 {[%clk 0:00:13.1]} 30. f5
{[%clk 0:00:06]} 30... e5 {[%clk 0:00:06.2]} 31. f6 {[%clk 0:00:05.2]} 31... Qd5
{[%clk 0:00:02.7]} 32. h4 {[%clk 0:00:03.5]} 32... Kd7 {[%clk 0:00:01.6]} 33. h5
{[%clk 0:00:03.7]} 33... Ke6 {[%clk 0:00:01.3]} 34. h6 {[%clk 0:00:04.1]} 1-0